Cogmind - Beta 16.1 @@@ ROGUE MODE // 2026.03.28 @ 15:47:36 Player: Gatamar Result: Destroyed by P-60 Hacker with Shock Rifle Performance ------------- Evolutions (4) 2000 Regions Visited (4) 800 Robots Destroyed (25) 125 Value Destroyed (965) 965 Prototype IDs (12) 240 Alien Tech Used (0) 0 Bonus (300) 300 TOTAL SCORE: 4430 Bonus ------- Registered with UFD 300 Cogmind --------- Core Integrity 0/850 Matter 550/550 Energy 100/100 System Corruption 13% Temperature Cool (0) Movement Core (450) Ox8 Location -6/Factory Parts ------- > --- POWER (2) -------- (None) > --- PROPULSION (4) --- (None) > --- UTILITY (7) ------ Large Storage Unit Matter Compressor Target Analyzer Hacking Suite > --- WEAPON (2) ------- (None) > --- INVENTORY (15) --- Large Storage Unit Targeting Computer Phase Shifter Heavy Plasma Cannon Compact Ion Cannon Faulty Compact Ion Cannon Faulty Compact Ion Cannon Compact Ion Cannon Heavy Assault Rifle Overtuned Barrage Gun Battle Cannon Assault Cannon Mini Assault Cannon Grenade Launcher Remote Datajack Peak State ------------ > --- POWER ------------ Light Deuterium Engine Nuclear Core > --- PROPULSION ------- Improved Medium Treads Improved Medium Treads Improved Medium Treads Improved Medium Treads > --- UTILITY ---------- Advanced Heat Sink Improved Cooling System Large Storage Unit Advanced Sensor Array Experimental Terrain Scanner Hardened Light Armor Plating Hacking Suite > --- WEAPON ----------- Phase Cannon Great Maul > --- INVENTORY -------- Spiked Treads Armored Leg Large Storage Unit Hardened Light Armor Plating Heavy Plasma Cannon Heavy Assault Rifle Heavy Assault Rifle Overtuned Barrage Gun Battle Cannon Assault Cannon Mini Assault Cannon Grenade Launcher [Rating: 66] Favorites ----------- Power Nuclear Core Engine Ion Engine Power Core Nuclear Core Propulsion Light Treads Treads Light Treads Leg Armored Leg Utility Large Storage Unit Device Advanced Heat Sink Storage Large Storage Unit Processor Target Analyzer Hackware Hacking Suite Protection Hardened Light Armor Plating Weapon Heavy Assault Rifle Energy Gun Small Laser Energy Cannon Phase Cannon Ballistic Gun Heavy Assault Rifle Ballistic Cannon Assault Cannon Impact Weapon Great Maul Build | -11 -10 -10 -8 -6 ------- Run | Yrd Mat Sub Scr Fac Slots Evolved 8 | . . . . 8 Power 1 | . . . . 1 Propulsion 2 | . . . . 2 Utility 5 | . . . . 5 Weapon . | . . . . . Parts Attached 34 | 6 4 . 4 20 Power 4 | 1 . . 1 2 Engine 2 | 1 . . . 1 Core 2 | . . . 1 1 Reactor . | . . . . . Propulsion 10 | 2 . . 2 6 Treads 7 | 2 . . 2 3 Leg 3 | . . . . 3 Wheel . | . . . . . Hover . | . . . . . Flight . | . . . . . Utility 12 | 1 2 . . 9 Device 5 | . . . . 5 Storage 3 | 1 1 . . 1 Processor 1 | . . . . 1 Hackware 1 | . . . . 1 Protection 2 | . 1 . . 1 Artifact . | . . . . . Weapon 8 | 2 2 . 1 3 Energy Gun 1 | 1 . . . . Energy Cannon 2 | . . . . 2 Ballistic Gun 3 | 1 2 . . . Ballistic Cannon 1 | . . . 1 . Launcher . | . . . . . Special Weapon . | . . . . . Impact Weapon 1 | . . . . 1 Slashing Weapon . | . . . . . Piercing Weapon . | . . . . . Special Melee Weapon . | . . . . . Unidentified Prototypes . | . . . . . Corrupted Parts 1 | . . . . 1 System Corruption 6 | . . . . 6 Parts Lost 21 | . . . . 21 Power 3 | . . . . 3 Propulsion 8 | . . . . 8 Utility 7 | . . . . 7 Weapon 3 | . . . . 3 Highest Loss Streak 7 | . . . . 7 To Critical Strikes . | . . . . . Average Backups 13 | 2 9 11 14 12 Power . | . 1 1 1 . Propulsion 2 | 1 2 2 3 1 Utility 3 | . 2 4 4 2 Weapon 6 | . 3 4 6 7 Tool/Special . | . . . . . Unused Backups 20 | . 1 . 6 13 Power 1 | . . . 1 . Propulsion 2 | . . . 2 . Utility 5 | . . . 2 3 Weapon 11 | . 1 . 1 9 Tool/Special 1 | . . . . 1 Average Slot Usage (%) 95 | . 97 100 100 84 Engine 4 | . 14 14 2 2 Core 7 | . . . 11 4 Treads 24 | . 28 28 28 17 Leg 1 | . . . . 4 Device 5 | . . . . 18 Storage 12 | . 14 14 14 8 Hackware 1 | . . . . 5 Protection 11 | . 11 14 14 4 Ballistic Gun 14 | . 25 28 18 1 Ballistic Cannon 5 | . . . 9 . Impact Weapon 1 | . . . . 5 Peak Build Rating 66 | 6 11 12 26 66 Average Rating 25 | 4 10 11 15 52 On Entrance 11 | . 6 11 12 26 Avg Prop Armor Cover (%) 13 | . . . . 13 Naked Turns . | . . . . . Heaviest Build 54 | 12 36 36 40 54 Greatest Support 120 | 40 40 40 60 120 Greatest Overweight (x) 9 | 1 . . . 9 Average Overweight (x) . | . . . . . Largest Inventory Capacity 15 | 8 15 15 15 15 Average Capacity 14 | 7 14 15 15 15 Most Carried 15 | 5 12 13 15 15 Average Carried 13 | 2 9 11 14 12 Final Capacity 15 | 8 15 15 15 15 Final Carried 15 | 4 11 13 15 15 Class Distribution -------------------- 92% | Mutant 7% | Scavenger-Mutant Dominant Class ---------------- Mutant | -10/Materials Mutant | -10/Subcaves Mutant | -8/Scraptown Mutant | -6/Factory Resources | -11 -10 -10 -8 -6 ----------- Run | Yrd Mat Sub Scr Fac Matter Collected 948 | 230 58 84 20 556 Remotely . | . . . . . Salvage Created 1403 | . 58 95 . 1250 Parts 38 | . 6 2 . 30 Haulers Intercepted 1 | . . . . 1 Recyclers Shooed . | . . . . . Parts Field Recycled . | . . . . . Retrieved Matter . | . . . . . Parts Self-Destructed 2 | . . 2 . . Prevented . | . . . . . Parts Restored . | . . . . . Kills | -11 -10 -10 -8 -6 ------- Run | Yrd Mat Sub Scr Fac Combat Hostiles Destroyed 16 | . 1 2 . 13 Melee 4 | . . . . 4 Guns 4 | . 1 2 . 1 Classes Destroyed 8 | . 2 . . 6 Worker 1 | . . . . 1 Builder 2 | . . . . 2 Hauler 1 | . . . . 1 Recycler 3 | . . . . 3 Operator 2 | . 1 . . 1 Grunt 10 | . 1 2 . 7 Hunter 4 | . . . . 4 Programmer 2 | . . . . 2 Best Kill Streak 5 | . 1 1 . 5 Combat Bots Only 2 | . 1 1 . 2 Max Kills in Single Turn 1 | . 1 1 . 1 Gunslinging . | . . . . . Exploded . | . . . . . Melee 1 | . . . . 1 Uniques/NPCs Destroyed . | . . . . . Combat | -11 -10 -10 -8 -6 -------- Run | Yrd Mat Sub Scr Fac Hostile Shots Fired 278 | . 8 9 . 261 Missed 69 | . 2 1 . 66 Hits 209 | . 6 8 . 195 Projectile 209 | . 6 8 . 195 Critical Strikes 3 | . . . . 3 Damage Taken 3829 | . 65 228 . 3536 Core 926 | . . 71 . 855 Absorbed by Shields . | . . . . . Regen/Repaired (Parts) 311 | . . . 311 . Core Remaining (%) 85 | 100 . . 71 . Volleys Fired 40 | . 7 5 . 28 Largest 2 | . 2 2 . 1 Hottest 90 | . 46 46 . 90 Shots Fired 52 | . 14 10 . 28 Gun 44 | . 14 10 . 20 Cannon 8 | . . . . 8 Launcher . | . . . . . Special . | . . . . . Kinetic 45 | . 14 10 . 21 Thermal 7 | . . . . 7 Explosive . | . . . . . Electromagnetic . | . . . . . Robot Hit Streak 6 | . 3 6 . 6 Robot Miss Streak 3 | . 2 1 . 3 Penetration Max . | . . . . . Secondary Targets . | . . . . . Shots Hit Robots 65 | . 8 8 . 49 Core Hits 16 | . 3 4 . 9 Critical Kills 2 | . . . . 2 Critical Parts Destroyed 10 | . . . . 10 Critical Strikes 12 | . . . . 12 Destroy 1 | . . . . 1 Smash 11 | . . . . 11 Melee Attacks 49 | . . . . 49 Impact 49 | . . . . 49 Slashing . | . . . . . Piercing . | . . . . . Sneak Attacks 6 | . . . . 6 Combat Hostiles . | . . . . . Follow-up Attacks . | . . . . . Damage Inflicted 2278 | . 109 112 . 2057 Guns 499 | . 109 112 . 278 Cannons 31 | . . . . 31 Explosions . | . . . . . Melee 1748 | . . . . 1748 Ramming . | . . . . . Kinetic 499 | . 109 112 . 278 Thermal 31 | . . . . 31 Explosive . | . . . . . Electromagnetic . | . . . . . Impact 1748 | . . . . 1748 Slashing . | . . . . . Piercing . | . . . . . Highest Corruption 13 | . . . . 13 Average Corruption 3 | . . . . 3 Corruption Purged . | . . . . . Corruption Blocked . | . . . . . Effects 16 | . . . . 16 Message Errors 3 | . . . . 3 Matter Fused 3 | . . . . 3 Energy Discharges 3 | . . . . 3 Data Loss (minor) 3 | . . . . 3 Data Loss (major) 3 | . . . . 3 Misdirections 1 | . . . . 1 Overload Shots . | . . . . . Overflow Damage 787 | . . . . 787 Projectiles . | . . . . . Explosions . | . . . . . Melee 787 | . . . . 787 Knockbacks 12 | . . . . 12 Impact 12 | . . . . 12 Kinetic . | . . . . . Secondary . | . . . . . Self-Inflicted Damage . | . . . . . Shots . | . . . . . Rammed . | . . . . . Targets Rammed . | . . . . . Kicked . | . . . . . Crushed . | . . . . . Highest Temperature . | . . . . . Average Temperature . | . . . . . Received Heat Transfer 318 | . 36 57 . 225 Siege Activations . | . . . . . Martial Activations . | . . . . . Shielding Activations . | . . . . . Robots Disrupted . | . . . . . Combat Hostiles . | . . . . . Robots Corrupted 13 | . . . . 13 Combat Hostiles 8 | . . . . 8 Parts Fried 21 | . . . . 21 Impact Corruptions 28 | . . . . 28 Robots Melted . | . . . . . Combat Hostiles . | . . . . . Parts Melted . | . . . . . Heat Transferred 37 | . . . . 37 Parts Sabotaged . | . . . . . Parts Stolen . | . . . . . Parts Stripped . | . . . . . Power Chain Reactions . | . . . . . Alert | -11 -10 -10 -8 -6 ------- Run | Yrd Mat Sub Scr Fac Maximum Alert Level . | . . . . . Low Security (%) 100 | 100 100 . . 100 Level 1 . | . . . . . Level 2 . | . . . . . Level 3 . | . . . . . Level 4 . | . . . . . Level 5 . | . . . . . High Security . | . . . . . Max Security . | . . . . . Peak Influence 116 | . 30 . . 116 Initial . | . . . . . Average 22 | . 3 . . 29 Influence Increases 588 | . 49 65 . 474 Destroy 0b10 Robot/C 320 | . 20 40 . 260 Destroy 0b10 Robot/NC 45 | . 5 . . 40 Destroy Leader 92 | . 10 10 . 72 Successful Hack 14 | . 14 . . . Disable Machine 30 | . . . . 30 Destroy Structure 12 | . . . . 12 Lose Combat Pursuer 75 | . . 15 . 60 Influence Decreases 588 | . 49 65 . 474 Time Decay 413 | . 49 65 . 299 Lost Part 175 | . . . . 175 Squads Dispatched 10 | . 2 . . 8 Investigation 2 | . 1 . . 1 Extermination 2 | . . . . 2 Reinforcement 6 | . 1 . . 5 Assault . | . . . . . Garrison . | . . . . . Intercept . | . . . . . Searches Triggered . | . . . . . Construction Impeded . | . . . . . Haulers Reinforced 1 | . . . . 1 Active Scanning Responses . | . . . . . Cargo Convoy Interrupts . | . . . . . Stealth | -11 -10 -10 -8 -6 --------- Run | Yrd Mat Sub Scr Fac Distress Signals 2 | . . . . 2 Communications Jammed . | . . . . . Distress Signals . | . . . . . Times Spotted 38 | . 8 3 . 27 Peak Tracking Total 5 | . 2 2 . 5 Tactical Retreats 5 | . . 1 . 4 Traps | -11 -10 -10 -8 -6 ------- Run | Yrd Mat Sub Scr Fac Traps Triggered 4 | . 1 3 . . Indirectly . | . . . . . Trap Hack Attempts . | . . . . . Triggered . | . . . . . Disarmed . | . . . . . Reprogrammed . | . . . . . Reused . | . . . . . Traps Extracted . | . . . . . Installed . | . . . . . Triggered . | . . . . . Machines | -11 -10 -10 -8 -6 ---------- Run | Yrd Mat Sub Scr Fac Machines Disabled 2 | . . . . 2 Max in Single Turn 1 | . . . . 1 Machines Repaired . | . . . . . Machines Dismantled . | . . . . . Machines Sabotaged . | . . . . . Overloaded Fab Kills . | . . . . . Hacking | -11 -10 -10 -8 -6 --------- Run | Yrd Mat Sub Scr Fac Machines Accessed 8 | . 1 . 5 2 Terminals 2 | . 1 . . 1 Fabricators . | . . . . . Repair Stations . | . . . . . Recycling Units . | . . . . . Scanalyzers . | . . . . . Garrison Access 1 | . . . . 1 Total Hacks 31 | . 1 . 27 3 Successful 28 | . 1 . 27 . Failed 3 | . . . . 3 Catastrophic . | . . . . . Database Lockouts . | . . . . . Manual 1 | . . . . 1 Terminals 2 | . 1 . . 1 Fabricators . | . . . . . Repair Stations . | . . . . . Recycling Units . | . . . . . Scanalyzers . | . . . . . Garrison Access 2 | . . . . 2 Terminal Hacks 28 | . 1 . 27 . Record 26 | . . . 26 . Zone Layout 1 | . 1 . . . Proto ID Catalog 1 | . . . 1 . Fabricator Hacks . | . . . . . Repair Station Hacks . | . . . . . Recycling Unit Hacks . | . . . . . Scanalyzer . | . . . . . Garrison Access Hacks . | . . . . . Unauthorized Hacks . | . . . . . Terminals . | . . . . . Fabricators . | . . . . . Repair Stations . | . . . . . Recycling Units . | . . . . . Scanalyzers . | . . . . . Garrison Access . | . . . . . Data Cores Recovered . | . . . . . Used . | . . . . . Hacking Detections 2 | . . . . 2 Full Trace Events 1 | . . . . 1 Feedback Events . | . . . . . Feedback Blocked . | . . . . . Robot Schematics Acquired . | . . . . . Robots Built . | . . . . . Authchips . | . . . . . Time . | . . . . . Total Robot Build Rating . | . . . . . Part Schematics Acquired . | . . . . . Parts Built . | . . . . . Authchips . | . . . . . Time . | . . . . . Total Part Build Rating . | . . . . . Part Studies Acquired . | . . . . . Parts Repaired . | . . . . . Time . | . . . . . Parts Recycled . | . . . . . Recycled Matter . | . . . . . Retrieved Matter . | . . . . . Retrieved Components . | . . . . . Parts Scanalyzed . | . . . . . Part Schematics Acquired . | . . . . . Parts Damaged . | . . . . . Bothacking | -11 -10 -10 -8 -6 ------------ Run | Yrd Mat Sub Scr Fac Used RIF Installer . | . . . . . Robots Hacked . | . . . . . Non-combat . | . . . . . Combat . | . . . . . Robot Hacks Applied . | . . . . . Relay Couplers Released . | . . . . . Fabnet Peak Effective % . | . . . . . Robots Rewired . | . . . . . Allies Hacked . | . . . . . Hacks Repelled . | . . . . . Allies | -11 -10 -10 -8 -6 -------- Run | Yrd Mat Sub Scr Fac Total Allies . | . . . . . Largest Group . | . . . . . Highest-Rated Group . | . . . . . Highest-Rated Ally . | . . . . . Initial UFD Resources 24 | . . . . 24 Total Orders . | . . . . . Ally Attacks . | . . . . . Total Damage . | . . . . . Kills . | . . . . . Allies Corrupted . | . . . . . Allies Melted . | . . . . . Intel | -11 -10 -10 -8 -6 ------- Run | Yrd Mat Sub Scr Fac Active Infowar (turns) 749 | . . . . 749 Sensors 747 | . . . . 747 Terrain 631 | . . . . 631 Robot Analysis Total . | . . . . . Derelict Logs Recovered . | . . . . . Drone Launches . | . . . . . Drone Recoveries . | . . . . . Exploration | -11 -10 -10 -8 -6 ------------- Run | Yrd Mat Sub Scr Fac Turns Passed 4612 | 91 399 250 2550 1322 Spaces Moved 2563 | 50 224 133 1582 574 Core 5 | 3 . . . 2 Treads 2329 | 47 224 133 1582 343 Legs 229 | . . . . 229 Wheels . | . . . . . Hover . | . . . . . Flight . | . . . . . Fastest Speed 50 | 50 160 160 160 120 Average Speed 162 | 155 160 160 160 171 Slowest Speed 500 | 160 160 160 160 500 Overloaded Moves . | . . . . . Propulsion Burnouts . | . . . . . Robots Hopped . | . . . . . Potential Cave-ins . | . . . . . Cave-ins Triggered . | . . . . . Exploration Rate (%) 29 | 3 35 10 88 9 Regions Visited 4 Branch Regions 2 Pre-discovered Areas . | . . . . . Known Exits Taken . | . . . . . Unknown Exits Taken 4 | 1 1 1 1 . Scrap Searched 5 | . . . 5 . Spaces Dug 7 | . . . . 7 Terrain Destroyed 12 | . . . . 12 Melee 7 | . . . . 7 Projectile 5 | . . . . 5 AOE . | . . . . . Terrain Rammed . | . . . . . Walls Destroyed . | . . . . . Machines Disabled . | . . . . . Actions | -11 -10 -10 -8 -6 --------- Run | Yrd Mat Sub Scr Fac Total 2857 | 61 250 155 1607 784 Wait 118 | . 5 16 . 97 Move 2559 | 49 223 132 1581 574 Hop . | . . . . . Pick Up 38 | 6 8 2 11 11 Fast Attach 13 | 4 2 . . 7 Attach 15 | 2 . . . 13 Detach 2 | . . . . 2 Swap 9 | . 2 . 4 3 Drop 14 | . 3 . 11 . Fire 40 | . 7 5 . 28 Melee 49 | . . . . 49 Ram . | . . . . . Kick . | . . . . . Crush . | . . . . . Escape Stasis . | . . . . . Rewire . | . . . . . Trap . | . . . . . Miscellaneous . | . . . . . Route ------- -11/Scrapyard -10/Materials (discovered 2 exits: [Mat] / [*Sub]) -10/Subcaves -8/Scraptown (discovered 2 exits: *Fac x2) -6/Factory History --------- Turn | Location | Event 9 | -11/Scrapyard | Discovered new exit (range 14) 92 | -11/Scrapyard | Entered Materials 277 | -10/Materials | Discovered new exit (range 10) 301 | -10/Materials | Build established: Mutant 481 | -10/Materials | Discovered new exit (range 5) 491 | -10/Materials | Entered Subcaves 492 | -10/Subcaves | Approached by a straggling Scientist 603 | -10/Subcaves | Shifting Twisted Machinery released Shrapnel Trap 640 | -10/Subcaves | Shifting Twisted Machinery released Spk. Treads 695 | -10/Subcaves | Scientist uncovered a shortcut to Scraptown 741 | -10/Subcaves | Entered Scraptown 1067 | -8/Scraptown | Heard Great Nut preacher, LISTEN AND RECITE! 1180 | -8/Scraptown | Discovered new exit (range 13) 1360 | -8/Scraptown | Visited Symbiants 1424 | -8/Scraptown | Visited Shadow of the Wyrm 1512 | -8/Scraptown | Visited UFD Registry 1537 | -8/Scraptown | Visited Awakened 1574 | -8/Scraptown | Visited CR-KLE's Repair Center 1587 | -8/Scraptown | CR-KLE repaired 7 parts 1718 | -8/Scraptown | Visited Cyclists 1766 | -8/Scraptown | Visited Spacefarers 1829 | -8/Scraptown | Visited Cave Peace 2238 | -8/Scraptown | Registered with UFD as "Metalwarp" 2265 | -8/Scraptown | Received an X-ray algorithm 2305 | -8/Scraptown | Visited Abandonware Association 2324 | -8/Scraptown | Learned abandonware demo "REPAIR.EXE" 2371 | -8/Scraptown | Visited Infowarlord's Domain 2382 | -8/Scraptown | Found Exp. Terrain Scanner 2432 | -8/Scraptown | Visited Science Guys 2704 | -8/Scraptown | Visited DA-N13 Charitable Foundation 2720 | -8/Scraptown | Found DCF Scrap (29 items) 2929 | -8/Scraptown | Discovered new exit (range 5) 2981 | -8/Scraptown | Visited Curators Association 3035 | -8/Scraptown | Visited Supply Room 3291 | -8/Scraptown | Entered Factory 3291 | -6/Factory | Evolved 8 slots: Power x1, Propulsion x2, Utility x5 4101 | -6/Factory | Lost 7 parts (1p3n2u1w) 4475 | -6/Factory | Core integrity fell below 50% 4496 | -6/Factory | System corruption reached 10% 4516 | -6/Factory | Build established: Scavenger-Mutant 4559 | -6/Factory | Core integrity fell below 20% 4566 | -6/Factory | Lost 4 parts (1p2n1w) 4613 | -6/Factory | Destroyed by P-60 Hacker with Shock Rifle Last Messages --------------- 04514_ ALERT: Potential suspicious activity detected, Programmers report to Factory Zone 8U. 04519_ Carbon-fiber Leg destroyed. 04520_ System corrupted: Component data lost. 04526_ K-01 Serf collects debris. 04535_ Mic. Nuclear Core destroyed. 04535_ Knocked back. 04537_ System corrupted: Matter fused (-5). 04537_ K-01 Serf collects debris. 04546_ U-05 Engineer builds a Wall. 04558_ Acquired 5 matter. 04565_ System corrupted: Component data lost. 04589_ Imp. Heat Sink destroyed. 04589_ Knocked back. 04604_ Arm. Leg destroyed. 04607_ Adv. Heat Sink destroyed. 04609_ System corrupted: Substantial component data lost. 04610_ Great Maul destroyed. Map ----- +----------------------------------------------------+ | ??????????????????????????????????"???? ???#???#?? | | ??????????????????????????????????????? ??##????#? | | ???????????????????????????????????????? ???##?#?? | | ???????????????????????? ???????????"??? ????#??? | | ??????????????????????????????????? ? ??? ??#????? | | ????????????????????????????????????"????????#???? | | ?????????????????????????? ??????????"???????????# | | ???????????????????????? ???????????? ????????#?? | | ????????????????????? ??????????????""????#???#### | | ???????????????????????????????? ???? ? ?????# | | ???????????????????###+#############+########## | | ????????????????#### # | | ????????????? # | | ????????????? % %# | | ????????????? % + | | ???????????????""" % # | | ????????????????"" ##################### # | | ???????????????? ???????####### # #### | | ????????????????????????#% / # | | ????????????????????????#x####" # | | ????????????????????????#x;#??# # | | ????????????????????#####pH#######/###### | | ????????????????????# ;H#????# | | ????????????????????# u # #????# #### | | ????????????????????# # ######% #?#? | | ????????????????????# @ u # #??? | | ????????????????????# # #??? | | ????????????????????# + % #??? | | ????????????????????# # #?? | | ????????????????????# # % #??? | | ????????????????????# ####+#########??? | | ???????????????????## % % # %!=== #??? | | ???????????????????## % #% !%%= #??? | | ???????????????????##% +% ==!* #??? | | ????????????????????##############!% #? | | ????????????????????###????#####?# = #??? | | ????????????????????????????????#" #??? | | ????????????????????????????????## #T?? | | ?????????????????????????????????# #??? | | ?????????????????????????????????" #??? | | ?????????????????????????????????# #??? | | ?????????????????????????????????# [ +??? | | ?????????????????????????????????# [ ##?? | | ?????????????????????????????????##############??? | | ?????????????????????????????????????????????#???? | | ?????????????????????????????????????????????????? | | ?????????????????????????????????????????????????? | | ?????????????????????????????????????????????????? | | ?????????????????????????????????????????????????? | | ?????????????????????????????????????????????????? | +----------------------------------------------------+ Best States ------------- Heat Dissipation 83 Energy Generation 23 Energy Capacity 280 Matter Stores 550 Matter Capacity 550 Sight Range 16 Robot Scan Range 16 Terrain Scan Range 30 Terrain Scan Density 10 Armor Coverage 300 Evasion (%) 55 Target Analysis 5 Recoil Reduction 4 Offensive Hacking 10 Item Schematics ----------------- None Robot Schematics ------------------ None Fabricated ------------ Nothing Repaired ---------- Nothing Studied --------- None Alien Tech Used ----------------- None Achievements -------------- Hammer Time Challenges ------------ None Game ------ Seed AnalysisJunkMediator Manual? 0 Play Time 00:50:22 Cumulative 26.1 hours Start 2026.03.28 @ 10:41:23 End 2026.03.28 @ 15:47:36 Sessions 3 Manual Loads 0 Difficulty Rogue Special Mode None Game No. 65 Rogue 65 Adventurer 0 Explorer 0 Win Type - Total 0 Types 0/0/0/0/0/0/0/0/0/0 Lore% 24 Gallery% 26 Achievement% 20 Wizard Run 0 Options --------- Layout 1 ASCII 0 Keyboard 0 Movement Numpad Keybinds 0 Fullscreen 1 Font 32/SmallcapsGlow Map View 50x35 Zoom Use 0% Tactical HUD 1 Map Filters NONE Filters NONE Steam 1 RUN: b535ca2a-edc2-42fc-984f-08aa03affc5a